fUST/lending_fUST_20241113
["ID","MTS","AMOUNT","RATE_DAILY","PERIOD"]
[342149828,1731509456314,-5330.68,0.00023835,2]
[342149829,1731509456324,-18183.79455059,0.00024,2]
[342149830,1731509456333,-556.82,0.00024068,2]
[342149831,1731509456342,-529.15,0.00024068,2]
[342149832,1731509456352,-500.0,0.00024068,2]
[342149833,1731509456362,-600.0,0.00024086,2]
[342149834,1731509456371,-580.75,0.00024109,2]
[342149835,1731509456381,-758.26,0.00024109,2]
[342149836,1731509456391,-1056.77,0.00024109,2]
[342149837,1731509456401,-1661.87,0.00024109,2]
[342149838,1731509456410,-903.57,0.00024109,2]
[342149839,1731509456419,-1428.26,0.00024109,2]
[342149840,1731509456429,-1380.05,0.00024109,2]
[342149841,1731509456439,-552.37,0.00024109,2]
[342149842,1731509456451,-767.18,0.00024109,2]
[342149843,1731509456460,-5330.68,0.00024109,2]
[342149844,1731509456470,-162.0,0.00024164,2]
[342149845,1731509456479,-2000.0,0.0002422,2]
[342149846,1731509456488,-1040.42575,0.00024222,2]
[342149847,1731509456498,-255.37725,0.00024222,2]
[342149848,1731509456507,-168.62925,0.00024222,2]
[342149849,1731509456516,-500.0,0.0002425,2]
[342149850,1731509456526,-600.0,0.00024337,2]
[342149851,1731509456535,-556.82,0.00024342,2]
[342149852,1731509456544,-529.15,0.00024342,2]
[342149853,1731509456553,-590.20216051,0.00024342,2]
[342149854,1731509456563,-580.75,0.00024383,2]
[342149855,1731509456572,-325.734991,0.00024383,7]
[342149856,1731509456581,-325.734991,0.00024383,7]
[342149857,1731509456591,-758.26,0.00024383,2]
[342149858,1731509456601,-234.243247,0.00024383,7]
[342149859,1731509456612,-234.243247,0.00024383,7]
[342149860,1731509456624,-1056.77,0.00024383,2]
[342149861,1731509456634,-1661.87,0.00024383,2]
[342149862,1731509456643,-903.57,0.00024383,2]
[342149863,1731509456653,-1428.26,0.00024383,2]
[342149864,1731509456664,-1380.05,0.00024383,2]
[342149865,1731509456675,-552.37,0.00024383,2]
[342149866,1731509456686,-346.612815,0.00024383,7]
[342149867,1731509456698,-346.612815,0.00024383,7]
[342149868,1731509456708,-767.18,0.00024383,2]
[342149869,1731509456717,-5330.68,0.00024383,2]
[342149870,1731509456728,-151.0,0.00024441,7]
[342149871,1731509456737,-151.36632,0.00024441,7]
[342149872,1731509456747,-600.0,0.00024588,2]
[342149873,1731509456756,-160.0,0.00024594,3]
[342149874,1731509456766,-556.82,0.00024616,2]
[342149875,1731509456775,-529.15,0.00024616,2]
[342149876,1731509456785,-802.32198374,0.00024635,2]
[342149877,1731509456795,-580.75,0.00024657,2]
[342149878,1731509456805,-758.26,0.00024657,2]
[342149879,1731509456815,-1056.77,0.00024657,2]
[342149880,1731509456825,-1661.87,0.00024657,2]
[342149881,1731509456834,-903.57,0.00024657,2]
[342149882,1731509456844,-1428.26,0.00024657,2]
[342149883,1731509456854,-1380.05,0.00024657,2]
[342149884,1731509456863,-552.37,0.00024657,2]
[342149885,1731509456874,-767.18,0.00024657,2]
[342149886,1731509456883,-5330.68,0.00024657,2]
[342149887,1731509456893,-151.0,0.00024658,7]
[342149888,1731509456903,-151.0,0.00024658,7]
[342149889,1731509456912,-151.0,0.00024658,7]
[342149890,1731509456922,-151.0,0.00024658,7]
[342149891,1731509456932,-176.303,0.0002467,2]
[342149892,1731509456945,-2396.8152,0.00024731,15]
[342149893,1731509456955,-547.755604,0.0002475,2]
[342149894,1731509456965,-151.0,0.00024792,4]
[342149895,1731509456975,-282.580404,0.00024839,7]
[342149896,1731509456985,-282.580404,0.00024839,7]
[342149897,1731509456994,-12274.79207436,0.00024839,2]
[342149898,1731509457005,-600.0,0.00024839,2]
[342149899,1731509457014,-556.82,0.0002489,2]
[342149900,1731509457023,-529.15,0.0002489,2]
[342149901,1731509457033,-1381.3224241,0.000249,7]
[342149902,1731509457043,-580.75,0.00024931,2]
[342149903,1731509457052,-758.26,0.00024931,2]
[342149904,1731509457062,-1056.77,0.00024931,2]
[342149905,1731509457072,-1661.87,0.00024931,2]
[342149906,1731509457081,-903.57,0.00024931,2]
[342149907,1731509457091,-1428.26,0.00024931,2]
[342149908,1731509457101,-1380.05,0.00024931,2]
[342149909,1731509457111,-552.37,0.00024931,2]
[342149910,1731509457120,-767.18,0.00024931,2]
[342149911,1731509457130,-5330.68,0.00024931,2]
[342149912,1731509457139,-10000.0,0.00024958,2]
[342149913,1731509457149,-151.0,0.00024958,7]
[342149914,1731509457158,-151.0,0.00024958,7]
[342149915,1731509457167,-573.961789,0.00024958,7]
[342149916,1731509457177,-573.961789,0.00024958,7]
[342149917,1731509457186,-359.711955,0.00024958,7]
[342149918,1731509457198,-359.711955,0.00024958,7]
[342149919,1731509457208,-1083.392158,0.00024958,7]
[342149920,1731509457218,-1083.392158,0.00024958,7]
[342149921,1731509457227,-151.0,0.00024989,7]
[342149922,1731509457237,-300.0,0.00025,2]
[342149923,1731509457246,-300.0,0.00025,2]
[342149924,1731509457255,-270.2,0.00025,2]
[342149925,1731509457264,-300.0,0.00025,2]
[342149926,1731509457274,-270.199999,0.00025,2]
[342149927,1731509457283,-300.0,0.00025,2]
[342149928,1731509457292,-270.2,0.00025,2]
[342149929,1731509457302,-270.2,0.00025,2]
[342149930,1731509457312,-164005.06473348,0.00025,2]
[342149931,1731509457321,-165.49956538,0.00025,2]
[342149932,1731509457330,-203.43640087,0.00025,2]
[342149933,1731509457340,-56950.9370326,0.00025,2]
[342149934,1731509457350,-509.93665546,0.00025,2]
[342149935,1731509457359,-10364.0,0.00025,2]
[342149936,1731509457369,-299.999999,0.00025,2]
[342149937,1731509457378,-151.845945,0.00025,7]
[342149938,1731509457387,-156.974183,0.00025,7]
[342149939,1731509457396,-151.0,0.00025,7]
[342149940,1731509457406,-156.974183,0.00025,7]
[342149941,1731509457415,-151.0,0.00025,7]
[342149942,1731509457424,-151.0,0.00025,7]
[342149943,1731509457434,-542.520203,0.00025,7]
[342149944,1731509457445,-542.520203,0.00025,7]
[342149945,1731509457455,-795.503535,0.00025,7]
[342149946,1731509457464,-795.503535,0.00025,7]
[342149947,1731509457474,-151.0,0.00025,7]
[342149948,1731509457483,-151.0,0.00025,7]
[342149949,1731509457493,-442.783361,0.00025,7]
[342149950,1731509457503,-892.283689,0.00025,7]
[342149951,1731509457512,-442.783361,0.00025,7]
[342149952,1731509457604,-892.283689,0.00025,7]
[342149953,1731509457615,-266.477268,0.00025,7]
[342149954,1731509457624,-266.477268,0.00025,7]
[342149955,1731509457635,-151.0,0.00025,7]
[342149956,1731509457645,-214.805909,0.00025,7]
[342149957,1731509457655,-151.0,0.00025,7]
[342149958,1731509457664,-500.0,0.00025,17]
[342149959,1731509457674,-894.562796,0.00025,7]
[342149960,1731509457687,-894.562796,0.00025,7]
[342149961,1731509457700,-151.0,0.00025,7]
[342149962,1731509457709,-164.094468,0.00025,7]
[342149963,1731509457719,-151.0,0.00025,7]
[342149964,1731509457728,-246.238447,0.00025,7]
[342149965,1731509457737,-246.238447,0.00025,7]
[342149966,1731509457747,-246.238447,0.00025,7]
[342149967,1731509457756,-246.238447,0.00025,7]
[342149968,1731509457766,-434.934597,0.00025,7]
[342149969,1731509457776,-434.934597,0.00025,7]
[342149970,1731509457786,-541.764153,0.00025,7]
[342149971,1731509457796,-2077.90945,0.00025,7]
[342149972,1731509457805,-2077.90945,0.00025,7]
[342149973,1731509457815,-1125.316537,0.00025,7]
[342149974,1731509457825,-1125.316537,0.00025,7]
[342149975,1731509457835,-151.0,0.00025,7]
[342149976,1731509457844,-573.961789,0.00025,7]
[342149977,1731509457853,-573.961789,0.00025,7]
[342149978,1731509457863,-151.0,0.00025,7]
[342149979,1731509457872,-359.711955,0.00025,7]
[342149980,1731509457881,-359.711955,0.00025,7]
[342149981,1731509457890,-857.938891,0.00025,7]
[342149982,1731509457899,-857.938891,0.00025,7]
[342149983,1731509457910,-1083.392158,0.00025,7]
[342149984,1731509457919,-1083.392158,0.00025,7]
[342149985,1731509457929,-325.734991,0.00025,7]
[342149986,1731509457938,-325.734991,0.00025,7]
[342149987,1731509457952,-234.243247,0.00025,7]
[342149988,1731509457962,-234.243247,0.00025,7]
[342149989,1731509457972,-282.580404,0.00025,7]
[342149990,1731509457981,-282.580404,0.00025,7]
[342149991,1731509457991,-346.612815,0.00025,7]
[342149992,1731509458000,-346.612815,0.00025,7]
[342149993,1731509458010,-7582.75691397,0.00025089,2]
[342149994,1731509458019,-100132.97030234,0.0002509,2]
[342149995,1731509458029,-151.0,0.0002509,7]
[342149996,1731509458039,-271.16023,0.0002509,7]
[342149997,1731509458048,-151.0,0.0002509,7]
[342149998,1731509458058,-54458.79134564,0.0002509,2]
[342149999,1731509458067,-151.788671,0.0002509,7]
[342150000,1731509458076,-156.974183,0.0002509,7]
[342150001,1731509458086,-151.0,0.0002509,7]
[342150002,1731509458095,-156.974183,0.0002509,7]
[342150003,1731509458104,-151.0,0.0002509,7]
[342150004,1731509458113,-151.0,0.0002509,7]
[342150005,1731509458122,-542.520203,0.0002509,7]
[342150006,1731509458131,-542.520203,0.0002509,7]
[342150007,1731509458141,-795.503535,0.0002509,7]
[342150008,1731509458150,-795.503535,0.0002509,7]
[342150009,1731509458162,-151.0,0.0002509,7]
[342150010,1731509458172,-151.0,0.0002509,7]
[342150011,1731509458182,-442.783361,0.0002509,7]
[342150012,1731509458191,-892.283689,0.0002509,7]
[342150013,1731509458203,-442.783361,0.0002509,7]
[342150014,1731509458212,-892.283689,0.0002509,7]
[342150015,1731509458221,-266.477268,0.0002509,7]
[342150016,1731509458231,-266.477268,0.0002509,7]
[342150017,1731509458241,-151.0,0.0002509,7]
[342150018,1731509458250,-151.0,0.0002509,7]
[342150019,1731509458259,-894.562796,0.0002509,7]
[342150020,1731509458268,-894.562796,0.0002509,7]
[342150021,1731509458278,-151.0,0.0002509,7]
[342150022,1731509458287,-151.0,0.0002509,7]
[342150023,1731509458296,-246.238447,0.0002509,7]
[342150024,1731509458312,-246.238447,0.0002509,7]
[342150025,1731509458322,-434.934597,0.0002509,7]
[342150026,1731509458332,-434.934597,0.0002509,7]
[342150027,1731509458341,-541.764153,0.0002509,7]
[342150028,1731509458351,-2077.90945,0.0002509,7]
[342150029,1731509458360,-196.46978586,0.0002509,2]
[342150030,1731509458369,-2077.90945,0.0002509,7]
[342150031,1731509458379,-1125.316537,0.0002509,7]
[342150032,1731509458388,-1125.316537,0.0002509,7]
[342150033,1731509458397,-151.0,0.0002509,7]
[342150034,1731509458407,-573.961789,0.0002509,7]
[342150035,1731509458416,-573.961789,0.0002509,7]
[342150036,1731509458425,-151.0,0.0002509,7]
[342150037,1731509458434,-359.711955,0.0002509,7]
[342150038,1731509458443,-359.711955,0.0002509,7]
[342150039,1731509458455,-857.938891,0.0002509,7]
[342150040,1731509458464,-857.938891,0.0002509,7]
[342150041,1731509458474,-500.0,0.0002509,2]
[342150042,1731509458484,-1083.392158,0.0002509,7]
[342150043,1731509458494,-1083.392158,0.0002509,7]
[342150044,1731509458503,-151.0,0.0002509,4]
[342150045,1731509458512,-151.0,0.0002509,4]
[342150046,1731509458521,-259.12470435,0.0002509,2]
[342150047,1731509458530,-500.0,0.0002509,2]
[342150048,1731509458539,-297.65938785,0.0002509,2]
[342150049,1731509458548,-500.0,0.0002509,2]
[342150050,1731509458558,-325.734991,0.0002509,7]
[342150051,1731509458567,-500.0,0.0002509,2]
[342150052,1731509458577,-325.734991,0.0002509,7]
[342150053,1731509458587,-234.243247,0.0002509,7]
[342150054,1731509458596,-234.243247,0.0002509,7]
[342150055,1731509458606,-282.580404,0.0002509,7]
[342150056,1731509458621,-282.580404,0.0002509,7]
[342150057,1731509458632,-501.47709983,0.0002509,9]
[342150058,1731509458642,-346.612815,0.0002509,7]
[342150059,1731509458652,-346.612815,0.0002509,7]
[342150060,1731509458661,-771.3293,0.000251,2]
[342150061,1731509458671,-556.82,0.00025164,2]
[342150062,1731509458680,-529.15,0.00025164,2]
[342150063,1731509458692,-300.0,0.000252,2]
[342150064,1731509458704,-580.75,0.00025205,2]
[342150065,1731509458714,-758.26,0.00025205,2]
[342150066,1731509458723,-1056.77,0.00025205,2]
[342150067,1731509458733,-1661.87,0.00025205,2]
[342150068,1731509458742,-903.57,0.00025205,2]
[342150069,1731509458752,-1428.26,0.00025205,2]
[342150070,1731509458762,-1380.05,0.00025205,2]
[342150071,1731509458771,-552.37,0.00025205,2]
[342150072,1731509458781,-767.18,0.00025205,2]
[342150073,1731509458790,-5330.68,0.00025205,2]
[342150074,1731509458799,-732.0,0.00025236,2]
[342150075,1731509458809,-2500.0,0.00025315,2]
[342150076,1731509458818,-500.0,0.00025364,2]
[342150077,1731509458827,-291.30353766,0.00025364,2]
[342150078,1731509458837,-748.63851,0.00025364,2]
[342150079,1731509458846,-500.0,0.00025364,2]
[342150080,1731509458855,-704.49201275,0.00025364,2]
[342150081,1731509458864,-151.0,0.00025364,7]
[342150082,1731509458874,-151.0,0.00025364,7]
[342150083,1731509458883,-556.82,0.00025438,2]
[342150084,1731509458892,-529.15,0.00025438,2]
[342150085,1731509458902,-580.83110633,0.00025479,2]
[342150086,1731509458911,-758.48530485,0.00025479,2]
[342150087,1731509458921,-1056.91599876,0.00025479,2]
[342150088,1731509458931,-1662.00366529,0.00025479,2]
[342150089,1731509458940,-903.70614211,0.00025479,2]
[342150090,1731509458955,-1428.45970245,0.00025479,2]
[342150091,1731509458964,-1380.1620961,0.00025479,2]
[342150092,1731509458973,-552.57,0.00025479,2]
[342150093,1731509458983,-767.184501,0.00025479,2]
[342150094,1731509458992,-5330.73636418,0.00025479,2]
[342150095,1731509459002,-823.2485,0.00025482,2]
[342150096,1731509459011,-300.0,0.000255,2]
[342150097,1731509459020,-390.47125,0.00025511,2]
[342150098,1731509459029,-500.0,0.00025589,7]
[342150099,1731509459039,-500.0,0.00025638,2]
[342150100,1731509459048,-500.0,0.00025638,2]
[342150101,1731509459057,-530.0,0.00025645,2]
[342150102,1731509459067,-2389.0,0.00025645,2]
[342150103,1731509459076,-1117.0,0.00025645,2]
[342150104,1731509459086,-812.38475,0.00025702,2]
[342150105,1731509459095,-556.82,0.00025712,2]
[342150106,1731509459106,-529.15,0.00025712,2]
[342150107,1731509459116,-1000.8,0.00025744,2]
[342150108,1731509459125,-802.32198374,0.0002575,2]
[342150109,1731509459134,-2500.0,0.00025756,2]
[342150110,1731509459144,-300.0,0.000258,2]
[342150111,1731509459155,-2235.30249069,0.00025852,2]
[342150112,1731509459164,-500.0,0.00025912,2]
[342150113,1731509459174,-150.1,0.00025912,2]
[342150114,1731509459183,-500.0,0.00025912,2]
[342150115,1731509459194,-359.711955,0.00025984,7]
[342150116,1731509459206,-359.711955,0.00025984,7]
[342150117,1731509459216,-282.580404,0.00025984,7]
[342150118,1731509459224,-282.580404,0.00025984,7]
[342150119,1731509459235,-557.0049253,0.00025986,2]
[342150120,1731509459246,-529.33274104,0.00025986,2]
[342150121,1731509459332,-573.961789,0.00025986,7]
[342150122,1731509459345,-573.961789,0.00025986,7]
[342150123,1731509459355,-1083.392158,0.00025986,7]
[342150124,1731509459365,-1083.392158,0.00025986,7]
[342150125,1731509459375,-346.612815,0.00025986,7]
[342150126,1731509459385,-346.612821,0.00025986,7]
[342150127,1731509459394,-1075.83363579,0.00026,2]
[342150128,1731509459403,-528.46341211,0.00026,2]
[342150129,1731509459412,-300.0,0.00026,2]
[342150130,1731509459422,-500.0,0.00026,20]
[342150131,1731509459431,-246.238447,0.00026,7]
[342150132,1731509459440,-246.238447,0.00026,7]
[342150133,1731509459452,-193.35,0.00026,2]
[342150134,1731509459461,-500.0,0.00026186,2]
[342150135,1731509459471,-803.18145976,0.00026186,2]
[342150136,1731509459480,-325.734991,0.00026186,7]
[342150137,1731509459489,-325.734992,0.00026186,7]
[342150138,1731509459499,-234.243247,0.00026186,7]
[342150139,1731509459510,-234.243243,0.00026186,7]
[342150140,1731509459520,-160.0,0.000262,4]
[342150141,1731509459529,-300.0,0.000262,2]
[342150142,1731509459538,-35000.0,0.000263,14]
[342150143,1731509459547,-156.974183,0.000263,7]
[342150144,1731509459557,-151.0,0.000263,7]
[342150145,1731509459566,-156.974183,0.000263,7]
[342150146,1731509459575,-151.0,0.000263,7]
[342150147,1731509459584,-151.0,0.000263,7]
[342150148,1731509459593,-542.520203,0.000263,7]
[342150149,1731509459604,-542.520203,0.000263,7]
[342150150,1731509459615,-795.503535,0.000263,7]
[342150151,1731509459625,-795.503535,0.000263,7]
[342150152,1731509459634,-151.0,0.000263,7]
[342150153,1731509459643,-151.0,0.000263,7]
[342150154,1731509459652,-442.783361,0.000263,7]
[342150155,1731509459662,-892.283689,0.000263,7]
[342150156,1731509459671,-442.783361,0.000263,7]
[342150157,1731509459680,-892.283689,0.000263,7]
[342150158,1731509459691,-266.477268,0.000263,7]
[342150159,1731509459703,-266.477268,0.000263,7]
[342150160,1731509459713,-151.0,0.000263,7]
[342150161,1731509459722,-151.0,0.000263,7]
[342150162,1731509459731,-894.562796,0.000263,7]
[342150163,1731509459739,-894.562796,0.000263,7]
[342150164,1731509459749,-151.0,0.000263,7]
[342150165,1731509459758,-434.934597,0.000263,7]
[342150166,1731509459768,-434.934597,0.000263,7]
[342150167,1731509459777,-541.764153,0.000263,7]
[342150168,1731509459787,-2077.90945,0.000263,7]
[342150169,1731509459796,-2077.90945,0.000263,7]
[342150170,1731509459805,-1125.316537,0.000263,7]
[342150171,1731509459816,-1125.316537,0.000263,7]
[342150172,1731509459825,-151.0,0.000263,7]
[342150173,1731509459834,-151.0,0.000263,7]
[342150174,1731509459843,-857.938891,0.000263,7]
[342150175,1731509459851,-857.938891,0.000263,7]
[342150176,1731509459860,-660.0,0.00026384,2]
[342150177,1731509459869,-500.0,0.00026411,7]
[342150178,1731509459878,-701.23490259,0.0002646,2]
[342150179,1731509459887,-151.0,0.00026461,7]
[342150180,1731509459896,-300.0,0.000265,2]
[342150181,1731509459905,-158.0,0.00026581,2]
[342150182,1731509459914,-152.36,0.000266,31]
[342150183,1731509459924,-152.36,0.000266,31]
[342150184,1731509459933,-152.36,0.000266,31]
[342150185,1731509459943,-465.05708676,0.00026663,2]
[342150186,1731509459954,-300.0,0.000268,2]
[342150187,1731509459963,-802.32198374,0.00026866,2]
[342150188,1731509459972,-4000.0,0.00027,7]
[342150189,1731509459981,-352.0,0.00027,3]
[342150190,1731509459990,-300.0,0.00027,2]
[342150191,1731509460000,-192.25748038,0.00027,2]
[342150192,1731509460010,-5790.32914254,0.00027,7]
[342150193,1731509460019,-500.0,0.00027,23]
[342150194,1731509460029,-254020.56853041,0.00027,2]
[342150195,1731509460039,-300.0,0.000272,2]
[342150196,1731509460048,-500.0,0.00027233,7]
[342150197,1731509460058,-10000.0,0.000273,14]
[342150198,1731509460074,-3000.0,0.00027499,5]
[342150199,1731509460092,-300.0,0.000275,2]
[342150200,1731509460105,-152.36,0.000276,31]
[342150201,1731509460122,-152.36,0.000276,31]
[342150202,1731509460137,-152.36,0.000276,31]
[342150203,1731509460154,-152.36,0.000276,31]
[342150204,1731509460169,-152.36,0.000276,31]
[342150205,1731509460186,-152.36,0.000276,31]
[342150206,1731509460203,-300.0,0.000278,2]
[342150207,1731509460220,-150.112235,0.000278,15]
[342150208,1731509460236,-176.32,0.000278,120]
[342150209,1731509460247,-160.0,0.00027806,5]
[342150210,1731509460260,-253.81920696,0.00027806,5]
[342150211,1731509460275,-802.32198374,0.00027981,2]
[342150212,1731509460290,-3000.0,0.00028,7]
[342150213,1731509460305,-300.0,0.00028,2]
[342150214,1731509460321,-500.0,0.00028,26]
[342150215,1731509460334,-193.35,0.00028,2]
[342150216,1731509460345,-2773.73651587,0.00028,30]
[342150217,1731509460358,-470.90842327,0.00028044,2]
[342150218,1731509460374,-500.0,0.00028055,7]
[342150219,1731509460385,-300.0,0.000282,2]
[342150220,1731509460398,-151.0,0.000282,7]
[342150221,1731509460412,-10000.0,0.000283,14]
[342150222,1731509460423,-151.0,0.000283,7]
[342150223,1731509460436,-296.600387,0.000283,7]
[342150224,1731509460450,-176.258,0.0002846,60]
[342150225,1731509460462,-300.0,0.000285,2]
[342150226,1731509460474,-152.36,0.000286,31]
[342150227,1731509460486,-152.36,0.000286,31]
[342150228,1731509460498,-152.36,0.000286,31]
[342150229,1731509460510,-152.36,0.000286,31]
[342150230,1731509460523,-152.36,0.000286,31]
[342150231,1731509460534,-152.36,0.000286,31]
[342150232,1731509460546,-176.289,0.0002862,2]
[342150233,1731509460558,-415.294604,0.0002863,30]
[342150234,1731509460569,-216.4442038,0.0002863,30]
[342150235,1731509460583,-2389.0,0.00028645,2]
[342150236,1731509460595,-264.557,0.00028645,2]
[342150237,1731509460610,-500.0,0.00028767,7]
[342150238,1731509460622,-300.0,0.000288,2]
[342150239,1731509460634,-430628.14351473,0.000288,2]
[342150240,1731509460737,-500.0,0.00019178,2]
[342150241,1731509460751,-500.0,0.00019452,2]
[342150242,1731509460764,-500.0,0.00019726,2]
[342150243,1731509460776,-197.34124239,0.0002,2]
[342150244,1731509460795,-302.65875761,0.0002,2]
[342150245,1731509460807,-500.0,0.00020273,2]
[342150246,1731509460817,-500.0,0.00020547,2]
[342150247,1731509460826,-385.22987474,0.00021267,2]
[342150248,1731509460838,-5721.13564448,0.00021267,2]
[342150249,1731509460848,-687.46626428,0.000251,2]
[342150250,1731509460860,-83.86303572,0.000251,2]
[342150251,1731509460870,-1158.16861568,0.000288,2]
[342150252,1731509460881,-4127.1896,0.000288,2]
[342150253,1731509461220,-1581.94174212,0.00019177,2]
[342150254,1731509461240,-500.0,0.00019178,2]
[342150255,1731509461252,-500.0,0.00019178,2]
[342150256,1731509461263,-570.28,0.00019452,2]
[342150257,1731509461273,-500.82632374,0.00019673,2]
[342150258,1731509461283,-500.0,0.00019673,2]
[342150259,1731509461293,-500.0,0.00020221,2]
[342150260,1731509461302,-153.17,0.00020821,2]
[342150261,1731509461312,-1000.0,0.00025,2]
[342150262,1731509461322,-193412.14739032,0.000288,2]
[342150263,1731509461332,-500.0,0.00028877,7]
[342150264,1731509461342,-150.112233,0.000289,13]
[342150265,1731509461353,-158.0,0.00028997,2]
[342150266,1731509461363,-300.0,0.00029,2]
[342150267,1731509461373,-10000.0,0.00029,14]
[342150268,1731509461384,-6391.73071426,0.00029,30]
[342150269,1731509461394,-151.0,0.00029,7]
[342150270,1731509461405,-500.0,0.00029,29]
[342150271,1731509461415,-529.0,0.00029,2]
[342150272,1731509461425,-359.711955,0.00029,7]
[342150273,1731509461436,-359.711959,0.00029,7]
[342150274,1731509461446,-282.580404,0.00029,7]
[342150275,1731509461460,-282.580396,0.00029,7]
[342150276,1731509461470,-802.32198374,0.00029097,2]
[342150277,1731509461479,-176.294,0.0002912,14]
[342150278,1731509461489,-300.0,0.000292,2]
[342150279,1731509461499,-246.238447,0.000292,7]
[342150280,1731509461508,-246.238455,0.000292,7]
[342150281,1731509461519,-153.0,0.00029315,30]
[342150282,1731509461529,-5039.37035856,0.00029379,24]
[342150283,1731509461538,-5000.0,0.00029379,24]
[342150284,1731509461548,-5000.0,0.00029379,24]
[342150285,1731509461557,-5000.0,0.00029379,19]
[342150286,1731509461567,-5000.0,0.00029379,20]
[342150287,1731509461577,-5037.4104041,0.00029379,24]
[342150288,1731509461587,-5000.0,0.00029379,21]
[342150289,1731509461598,-6315.69461663,0.00029379,25]
[342150290,1731509461607,-156.974183,0.00029379,7]
[342150291,1731509461620,-151.0,0.00029379,7]
[342150292,1731509461629,-156.974183,0.00029379,7]
[342150293,1731509461639,-151.0,0.00029379,7]
[342150294,1731509461648,-151.0,0.00029379,7]
[342150295,1731509461658,-542.520203,0.00029379,7]
[342150296,1731509461668,-542.520203,0.00029379,7]
[342150297,1731509461678,-795.503535,0.00029379,7]
[342150298,1731509461690,-795.503535,0.00029379,7]
[342150299,1731509461704,-151.0,0.00029379,7]
[342150300,1731509461713,-151.0,0.00029379,7]
[342150301,1731509461723,-442.783361,0.00029379,7]
[342150302,1731509461733,-892.283689,0.00029379,7]
[342150303,1731509461743,-442.783361,0.00029379,7]
[342150304,1731509461752,-892.283689,0.00029379,7]
[342150305,1731509461762,-266.477268,0.00029379,7]
[342150306,1731509461771,-266.477268,0.00029379,7]
[342150307,1731509461782,-151.0,0.00029379,7]
[342150308,1731509461792,-151.0,0.00029379,7]
[342150309,1731509461802,-894.562796,0.00029379,7]
[342150310,1731509461812,-894.562796,0.00029379,7]
[342150311,1731509461822,-151.0,0.00029379,7]
[342150312,1731509461831,-434.934597,0.00029379,7]
[342150313,1731509461840,-434.934597,0.00029379,7]
[342150314,1731509461851,-541.764153,0.00029379,7]
[342150315,1731509461860,-2077.90945,0.00029379,7]
[342150316,1731509461870,-2077.90945,0.00029379,7]
[342150317,1731509461880,-1125.316537,0.00029379,7]
[342150318,1731509461889,-1125.316537,0.00029379,7]
[342150319,1731509461899,-151.0,0.00029379,7]
[342150320,1731509461909,-573.961789,0.00029379,7]
[342150321,1731509461919,-573.96179,0.00029379,7]
[342150322,1731509461928,-857.938891,0.00029379,7]
[342150323,1731509461937,-857.938891,0.00029379,7]
[342150324,1731509461948,-1083.392158,0.00029379,7]
[342150325,1731509461959,-1083.39216396,0.00029379,7]
[342150326,1731509461969,-500.11,0.00029406,2]
[342150327,1731509461979,-3500.0,0.00029426,5]